bitfinex/quotes_SOLUSD_20250315
["timestamp","ask_amount","ask_price","bid_price","bid_amount"]
[1742020584960,0.03,134.03,134.02,25.802658]
[1742020585460,0.03,134.03,134.02,26.08698114]
[1742020586449,0.03,134.03,134.02,106.72698114]
[1742020612091,0.03,134.03,134.02,106.58481957]
[1742020612280,0.03,134.03,134.02,98.981158]
[1742020612792,0.03,134.03,134.02,92.521158]
[1742020612994,0.03,134.03,134.02,98.961158]
[1742020620580,1.6716,134.03,134.02,80.64]
[1742020620997,9.1326,134.03,134.02,87.08]
[1742020621287,1.6716,134.03,134.02,87.08]
[1742020622107,1.6716,134.03,134.02,98.961158]
[1742020623283,1.6716,134.03,134.02,87.08]
[1742020623482,1.6716,134.03,134.02,80.64]
[1742020623801,1.6716,134.03,134.02,6.44]
[1742020628105,1.6716,134.03,134.02,18.321158]
[1742020631306,1.6716,134.03,134.02,6.44]
[1742020631790,9.1326,134.03,134.02,6.44]
[1742020632909,1.6716,134.03,134.02,6.44]
[1742020635192,1.6716,134.03,133.99,6.44]
[1742020635193,21.013858,134.03,133.99,6.44]
[1742020635911,21.013858,134.03,133.98,6.44]
[1742020636091,39.666358,134.03,133.98,6.44]
[1742020636295,1.6025,133.99,133.97,0.063]
[1742020637101,7.4638,133.98,133.97,0.063]
[1742020637718,9.0659,133.99,133.97,0.063]
[1742020638202,1.6025,133.99,133.97,0.063]
[1742020639015,1.6025,133.99,133.97,11.944158]
[1742020639615,1.6025,133.99,133.97,0.063]
[1742020639797,1.6025,133.99,133.97,6.503]
[1742020640496,9.0658,133.99,133.97,6.503]
[1742020641506,11.881158,133.98,133.97,0.063]
[1742020641693,18.390258,133.98,133.97,0.063]
[1742020643833,25.854058,133.98,133.97,0.063]
[1742020645530,13.9729,133.98,133.97,0.063]
[1742020645829,6.5091,133.98,133.97,0.063]
[1742020646800,13.9729,133.98,133.97,0.063]
[1742020647022,6.5091,133.98,133.97,0.063]
[1742020647520,1.6025,133.99,133.97,0.063]
[1742020647904,1.6025,133.99,133.97,6.503]
[1742020652003,1.6025,133.99,133.97,18.384158]
[1742020652524,1.6025,133.99,133.97,6.503]
[1742020653906,1.6025,133.99,133.97,18.384158]
[1742020654826,1.6025,133.99,133.97,6.503]
[1742020659533,9.0658,133.99,133.97,6.503]
[1742020659922,1.6025,133.99,133.97,6.503]
[1742020662432,1.6025,133.99,133.97,0.063]
[1742020662627,1.6025,133.99,133.97,6.503]
[1742020663243,9.0658,133.99,133.97,6.503]
[1742020663535,20.946958,133.99,133.97,6.503]
[1742020664541,9.0658,133.99,133.97,6.503]
[1742020670023,9.0658,133.99,133.97,0.063]
[1742020672133,11.881158,134.01,133.97,0.063]
[1742020672439,6.5091,134.02,133.97,11.944158]
[1742020673217,13.9708,134.02,133.97,11.944158]
[1742020673537,13.9708,134.02,133.97,19.408358]
[1742020673836,7.4617,134.02,133.97,11.944158]
[1742020674347,19.342858,134.02,133.97,11.944158]
[1742020675030,11.881158,134.01,133.97,0.063]
[1742020675224,7.4626,134.0,133.97,0.063]
[1742020675429,19.343758,134.0,133.97,0.063]
[1742020677939,11.881158,134.01,133.97,0.063]
[1742020678438,11.881158,134.0,133.97,0.063]
[1742020680143,19.343258,134.01,133.97,0.063]
[1742020681742,11.881158,134.0,133.97,0.063]
[1742020681951,11.881158,133.99,133.97,0.063]
[1742020682138,7.4638,133.98,133.97,0.063]
[1742020683041,19.344958,133.98,133.97,0.063]
[1742020684249,7.4638,133.98,133.97,0.063]
[1742020685245,7.4621,134.01,133.97,0.063]
[1742020687137,19.343258,134.01,133.97,0.063]
[1742020687541,11.881158,134.0,133.97,0.063]
[1742020688548,7.4632,133.99,133.97,0.063]
[1742020691353,7.4628,134.0,133.97,0.063]
[1742020697269,7.4923,134.01,133.97,0.063]
[1742020697555,7.4923,134.01,133.98,6.44]
[1742020698335,0.03,134.01,133.98,6.44]
[1742020713470,11.911158,134.01,133.98,6.44]
[1742020714547,11.911158,134.01,133.97,0.063]
[1742020714548,11.881158,134.0,133.97,0.063]
[1742020714768,11.881158,133.99,133.97,0.063]
[1742020715153,11.881158,134.0,133.97,0.063]
[1742020715761,30.70296843,134.01,133.97,0.063]
[1742020716362,11.911158,134.01,133.97,0.063]
[1742020716872,0.03,134.01,133.98,11.881158]
[1742020717577,0.03,134.01,133.97,11.944158]
[1742020717978,0.03,134.01,133.97,0.063]
[1742020718153,0.03,134.01,133.97,11.944158]
[1742020720266,0.03,134.01,133.97,19.408458]
[1742020721173,0.03,134.01,133.97,11.944158]
[1742020722863,0.03,134.01,133.97,19.408358]
[1742020723462,0.03,134.01,133.98,19.344758]
[1742020723984,0.03,134.01,133.98,11.881158]
[1742020724187,0.03,134.01,133.98,19.344858]
[1742020729581,0.03,134.01,133.98,11.881158]
[1742020730289,0.03,134.01,133.98,19.344858]
[1742020734376,0.03,134.01,133.98,11.881158]
[1742020735187,0.03,134.01,133.98,19.344858]
[1742020735372,0.03,134.01,133.98,11.881158]
[1742020736176,0.03,134.01,133.98,19.344758]
[1742020741379,0.03,134.01,133.98,11.881158]
[1742020743898,0.03,134.01,133.97,19.408358]
[1742020744282,0.03,134.01,133.98,11.881158]
[1742020746797,0.03,134.01,133.97,19.408358]
[1742020750378,0.03,134.01,133.98,11.881158]
[1742020752198,0.03,134.01,133.99,11.881158]
[1742020752405,0.03,134.01,134.0,11.881158]
[1742020752580,0.03,134.01,134.0,92.521158]
[1742020754203,0.03,134.01,134.0,99.983758]
[1742020767108,0.03,134.01,134.0,100.26808114]
[1742020767309,0.03,134.02,134.01,99.25964886]
[1742020767489,0.03,134.02,134.01,117.58080686]
[1742020769203,0.03,134.02,134.01,125.04290686]
[1742020772019,0.03,134.02,134.01,128.78085077]
[1742020777411,0.03,134.02,134.01,116.89969277]
[1742020777712,0.03,134.02,134.01,128.78085077]
[1742020778728,0.03,134.07,134.04,20.0]
[1742020779025,0.03,134.07,134.06,11.881158]
[1742020779226,0.03,134.07,134.06,18.321158]
[1742020779925,0.03,134.07,134.06,106.67478114]
[1742020794527,0.03,134.07,134.06,107.79308738]
[1742020796036,0.03,134.07,134.06,126.44273624]
[1742020796241,0.03,134.1,134.09,11.881158]
[1742020796419,0.03,134.1,134.09,92.491158]
[1742020797038,0.03,134.1,134.09,80.61]
[1742020797240,0.03,134.1,134.09,92.491158]
[1742020799044,0.03,134.1,134.09,99.948758]
[1742020802660,0.03,134.1,134.09,100.23308114]
[1742020804748,0.03,134.1,134.09,120.00079583]
[1742020807751,0.03,134.11,134.1,0.28432314]
[1742020807954,0.03,134.11,134.1,30.81513]
[1742020808158,0.03,134.11,134.1,111.42513]
[1742020808759,0.03,134.11,134.1,118.88223]
[1742020811280,1.561,134.13,134.12,0.28432314]
[1742020811281,0.01221821,134.13,134.12,0.28432314]
[1742020811458,0.03,134.15,134.12,146.69011314]
[1742020811775,0.03,134.15,134.13,11.881158]
[1742020812871,0.03,134.15,134.13,19.336558]
[1742020814876,0.03,134.15,134.13,99.916558]
[1742020815104,0.03,134.15,134.13,100.20088114]
[1742020816376,0.03,134.15,134.13,118.85053]
[1742020821269,0.03,134.15,134.13,122.57970503]
[1742020828585,0.03,134.15,134.13,123.69729163]
[1742020828786,0.03,134.15,134.14,18.64964886]
[1742020828986,0.03,134.15,134.14,30.53080686]
[1742020829809,0.03,134.15,134.14,37.98560686]
[1742020830201,0.03,134.16,134.15,99.19964886]
[1742020830386,0.03,134.16,134.15,111.08080686]
[1742020831114,0.03,134.16,134.15,92.431158]
[1742020831401,0.03,134.16,134.15,92.71548114]
[1742020832812,0.03,134.16,134.15,100.16978114]
[1742020835812,1.5375,134.16,134.15,100.16978114]
[1742020843142,1.5375,134.16,134.15,100.23278114]
[1742020844043,1.5375,134.16,134.15,92.494158]
[1742020844341,1.5375,134.16,134.15,87.033]
[1742020845240,8.9912,134.16,134.13,286.773]
[1742020845416,8.9912,134.16,134.14,6.42]
[1742020847533,1.5375,134.16,134.14,6.42]
[1742020848036,8.9913,134.16,134.14,6.42]
[1742020849841,1.5375,134.16,134.14,18.301158]
[1742020850251,1.5375,134.16,134.15,11.881158]
[1742020850828,1.5375,134.16,134.15,19.335458]
[1742020851137,0.03,134.16,134.15,99.885458]
[1742020858644,0.03,134.16,134.15,100.16978114]
[1742020860446,0.03,134.16,134.15,92.431158]
[1742020863254,0.03,134.16,134.15,86.97]
[1742020867030,0.03,134.16,134.15,87.033]
[1742020871344,0.03,134.16,134.15,98.914158]
[1742020882676,0.03,134.16,134.15,87.033]
[1742020883859,0.03,134.16,134.15,6.483]
[1742020884164,1.5531,134.16,134.15,0.063]
[1742020884362,1.5531,134.16,134.15,6.483]
[1742020885043,13.434258,134.16,134.15,0.063]
[1742020885243,13.434258,134.16,134.13,0.063]
[1742020886137,7.4543,134.15,134.13,0.063]
[1742020886344,13.404258,134.14,134.13,0.063]
[1742020886544,13.404258,134.14,134.1,6.42]
[1742020886946,13.404258,134.14,134.09,293.15]
[1742020887768,7.4554,134.13,134.09,293.15]
[1742020888162,7.4554,134.13,134.09,212.6]
[1742020888865,19.336558,134.13,134.09,212.6]
[1742020889066,19.336558,134.13,134.09,6.42]
[1742020889261,7.4565,134.11,134.09,6.42]
[1742020889759,7.4565,134.11,134.07,11.881158]
[1742020889966,7.4565,134.11,134.08,6.42]
[1742020890850,7.4565,134.11,134.07,11.881158]
[1742020891052,7.4565,134.11,134.08,6.483]
[1742020893242,13.515958,134.1,134.08,0.063]
[1742020893658,20.973558,134.1,134.08,0.063]
[1742020894268,9.0924,134.1,134.08,0.063]
[1742020897078,1.6348,134.1,134.08,0.063]
[1742020897866,1.6348,134.1,134.09,6.42]
[1742020908982,7.456,134.12,134.09,6.42]
[1742020913083,13.487258,134.13,134.09,6.42]
[1742020913283,1.6061,134.13,134.11,11.881158]
[1742020913466,6.3253,134.15,134.11,11.881158]
[1742020914382,13.7798,134.15,134.11,11.881158]
[1742020914686,0.03,134.13,134.11,11.881158]
[1742020915660,0.03,134.13,134.12,19.337158]
[1742020920202,0.03,134.13,134.12,100.037158]
[1742020920389,0.03,134.13,134.12,80.7]
[1742020921872,0.03,134.13,134.12,92.581158]
[1742020923696,0.03,134.13,134.12,99.001158]
[1742020926899,0.03,134.13,134.12,99.064158]
[1742020928398,0.03,134.13,134.12,106.520158]
[1742020929797,0.03,134.13,134.12,106.80448114]
[1742020932809,0.03,134.13,134.12,154.32911314]
[1742020933303,0.03,134.13,134.12,106.80448114]
[1742020934486,0.03,134.13,134.12,154.32911314]
[1742020945888,0.03,134.13,134.12,154.04479]
[1742020946092,0.03,134.13,134.12,154.32911314]
[1742020950330,0.03,134.13,134.12,146.87311314]
[1742020950531,0.03,134.13,134.12,99.34848114]
[1742020950830,0.03,134.13,134.12,106.80448114]
[1742020958139,0.03,134.13,134.12,154.32911314]
[1742020959136,0.03,134.13,134.12,106.80448114]
[1742020963039,0.03,134.13,134.12,106.520158]
[1742020963443,0.03,134.13,134.12,99.064158]
[1742020964515,0.03,134.13,134.12,106.520158]
[1742020965932,0.03,134.13,134.12,100.100158]
[1742020966138,0.03,134.13,134.12,106.500158]
[1742020970346,0.03,134.13,134.12,99.044158]
[1742020984842,0.03,134.13,134.12,92.644158]
[1742020985043,0.03,134.13,134.12,99.044158]
[1742020986239,0.03,134.13,134.12,92.644158]
[1742020986439,0.03,134.13,134.12,99.044158]
[1742020986938,1.6687,134.13,134.12,0.063]
[1742020987848,9.1241,134.13,134.12,0.063]
[1742020989444,1.6687,134.13,134.12,0.063]
[1742020994648,1.6687,134.13,134.12,11.944158]
[1742020996247,0.03,134.13,134.12,19.400158]
[1742020997260,0.03,134.13,134.12,11.944158]
[1742021000976,0.03,134.13,134.12,19.400158]
[1742021001784,0.03,134.13,134.12,11.944158]
[1742021002955,0.03,134.13,134.12,19.400158]
[1742021003669,0.03,134.13,134.12,11.944158]
[1742021005374,0.03,134.13,134.12,0.063]
[1742021006155,1.5661,134.13,134.12,0.063]
[1742021008765,9.0215,134.13,134.12,0.063]
[1742021009083,1.5661,134.13,134.12,0.063]
[1742021011981,1.5661,134.13,134.12,11.944158]
[1742021012365,1.5661,134.13,134.12,19.400158]
[1742021012562,0.03,134.13,134.12,11.944158]
[1742021012759,0.03,134.13,134.12,19.400158]
[1742021013570,0.03,134.13,134.12,11.944158]
[1742021014986,0.03,134.13,134.12,19.400158]
[1742021015276,0.03,134.13,134.12,11.944158]
[1742021026389,0.03,134.13,134.12,0.063]
[1742021029287,1.5831,134.13,134.12,0.063]
[1742021030002,9.0385,134.13,134.12,0.063]
[1742021031807,1.5831,134.13,134.12,0.063]
[1742021054002,0.03,134.13,134.12,0.063]
[1742021055934,19.474458,134.13,134.12,0.063]
[1742021056317,26.929858,134.13,134.12,0.063]
[1742021057234,27.21418114,134.13,134.12,0.063]
[1742021059541,8.9975,134.13,134.12,0.063]
[1742021068529,20.878658,134.13,134.12,0.063]
[1742021071332,39.81263,134.13,134.12,0.063]
[1742021073646,39.81263,134.13,134.09,0.063]
[1742021073850,13.480758,134.1,134.09,0.063]
[1742021075830,20.937858,134.1,134.09,0.063]
[1742021084152,21.22218114,134.1,134.09,0.063]
[1742021089058,20.937858,134.1,134.09,0.063]
[1742021089359,7.4571,134.1,134.09,0.063]
[1742021090742,19.338258,134.1,134.09,0.063]
[1742021091061,19.337858,134.11,134.09,0.063]
[1742021091262,7.4567,134.11,134.09,0.063]
[1742021091557,19.337858,134.11,134.09,0.063]
[1742021093666,11.881158,134.1,134.09,0.063]
[1742021093848,19.338258,134.1,134.09,0.063]
[1742021094360,7.4571,134.1,134.09,0.063]
[1742021099170,19.338258,134.1,134.09,0.063]
[1742021099771,11.881158,134.11,134.09,0.063]
[1742021101774,7.4571,134.1,134.09,0.063]
[1742021103673,19.338258,134.1,134.09,0.063]
[1742021103868,20.0,134.1,134.09,0.063]
[1742021104074,31.881158,134.1,134.09,0.063]
[1742021106093,27.4571,134.1,134.09,0.063]
[1742021107081,39.338258,134.1,134.09,0.063]
[1742021110488,27.4571,134.1,134.09,0.063]
[1742021110873,7.4566,134.11,134.09,0.063]
[1742021111276,7.456,134.12,134.09,0.063]
[1742021112578,7.486,134.12,134.09,0.063]
[1742021114602,0.03,134.12,134.09,0.063]
[1742021114787,0.03,134.12,134.1,6.4]
[1742021115978,0.03,134.12,134.1,18.281158]
[1742021116592,0.03,134.12,134.1,25.738058]
[1742021117575,0.03,134.12,134.1,18.281158]
[1742021118897,0.03,134.12,134.1,25.738158]
[1742021119487,0.03,134.12,134.11,11.881158]
[1742021119883,0.03,134.12,134.11,99.43501957]
[1742021120200,0.03,134.12,134.11,118.08466843]
[1742021120805,0.03,134.12,134.11,125.54116843]
[1742021121177,0.03,134.12,134.11,173.207962]
[1742021121383,0.03,134.13,134.12,0.14216157]
[1742021121578,0.03,134.13,134.12,140.24795157]
[1742021122584,0.03,134.13,134.12,111.37296843]
[1742021126216,0.03,134.13,134.12,118.82896843]
[1742021126514,0.03,134.13,134.12,166.35360043]
[1742021126732,0.03,134.13,134.12,166.495762]
[1742021131319,0.03,134.16,134.14,7.4548]
[1742021131524,0.03,134.16,134.15,37.07296843]
[1742021132618,0.03,134.16,134.15,44.52726843]
[1742021137206,0.03,134.16,134.15,125.19726843]
[1742021138628,0.03,134.16,134.15,125.33943]
[1742021149730,1.4929352,134.2,134.16,0.14216157]
[1742021150042,1.4929352,134.2,134.19,11.881158]
[1742021153147,1.4929352,134.2,134.19,19.333258]
[1742021153944,1.4929352,134.2,134.19,100.003258]
[1742021158440,1.4929352,134.2,134.19,166.461862]
[1742021160634,1.4929352,134.2,134.19,118.93723]
[1742021161240,1.4929352,134.2,134.19,166.461862]
[1742021161829,1.5229352,134.2,134.19,166.461862]
[1742021163944,1.5229352,134.2,134.19,118.93723]
[1742021164668,1.5229352,134.2,134.19,166.461862]
[1742021167228,1.5229352,134.2,134.19,170.20066071]
[1742021168447,1.5229352,134.2,134.19,166.461862]
[1742021172234,1.5229352,134.2,134.19,170.16304918]
[1742021173762,0.03,134.21,134.2,18.933972]
[1742021174055,0.03,134.21,134.2,37.19513]
[1742021174262,0.03,134.21,134.2,44.64663]
[1742021175439,0.03,134.21,134.2,125.31663]
[1742021184370,0.03,134.21,134.2,118.93663]
[1742021184563,0.03,134.21,134.2,125.31663]
[1742021187655,0.03,134.21,134.2,98.931158]
[1742021190070,0.03,134.21,134.2,106.382658]
[1742021190777,0.03,134.21,134.2,98.931158]
[1742021193656,0.03,134.21,134.2,125.17446843]
[1742021199278,0.03,134.21,134.2,125.31663]
[1742021201177,0.03,134.21,134.2,125.17446843]
[1742021201372,0.03,134.21,134.2,92.551158]
[1742021201563,0.03,134.21,134.2,6.38]
[1742021202164,0.03,134.21,134.2,18.261158]
[1742021205987,0.03,134.21,134.2,6.38]
[1742021206764,1.6429,134.21,134.2,6.38]
[1742021208083,1.6429,134.21,134.2,18.261158]
[1742021209890,1.6429,134.21,134.2,25.712658]
[1742021210667,0.03,134.21,134.2,44.50446843]
[1742021213606,0.03,134.21,134.2,125.17446843]
[1742021216074,0.03,134.21,134.2,106.382658]
[1742021216275,0.03,134.21,134.2,98.931158]
[1742021221685,1.6467,134.21,134.2,87.05]
[1742021222411,1.6467,134.21,134.2,80.67]
[1742021223202,20.978958,134.21,134.19,6.443]
[1742021224099,20.978958,134.21,134.19,0.063]
[1742021224310,1.6167,134.19,134.16,0.063]
[1742021225092,9.0688,134.19,134.16,0.063]
[1742021226792,20.949958,134.19,134.16,0.063]
[1742021228309,18.165858,134.18,134.16,0.063]
[1742021229090,6.2847,134.18,134.16,0.063]
[1742021235303,1.6167,134.19,134.16,0.063]
[1742021235620,1.6167,134.19,134.17,11.881158]
[1742021235814,1.6167,134.19,134.18,6.38]
[1742021237210,9.0688,134.19,134.18,6.38]
[1742021237622,1.6167,134.19,134.18,6.38]
[1742021240742,0.03,134.21,134.18,18.261158]
[1742021241036,0.03,134.21,134.18,25.713758]
[1742021241335,0.03,134.21,134.19,11.881158]
[1742021241623,0.03,134.21,134.2,11.881158]
[1742021242626,0.03,134.21,134.2,19.332658]
[1742021245724,0.03,134.21,134.2,100.002658]
[1742021250456,0.03,134.21,134.2,118.79446843]
[1742021251132,0.03,134.21,134.2,118.93663]
[1742021253939,0.03,134.26,134.22,0.14216157]
[1742021254141,0.03,134.26,134.25,11.881158]
[1742021256351,0.03,134.26,134.24,11.881158]
[1742021260259,0.03,134.26,134.25,11.881158]
[1742021261436,0.03,134.26,134.25,19.329858]
[1742021264457,0.03,134.26,134.25,38.12166843]
[1742021265574,0.03,134.26,134.25,166.458462]
[1742021266546,0.03,134.26,134.25,118.93383]
[1742021272670,0.03,134.26,134.25,166.458462]
[1742021274282,0.03,134.26,134.25,118.93383]
[1742021274574,0.03,134.26,134.25,118.79166843]
[1742021274962,0.03,134.26,134.25,92.551158]
[1742021276072,0.03,134.26,134.25,99.999858]
[1742021278673,0.03,134.26,134.25,106.379858]
[1742021279860,0.03,134.26,134.25,99.999858]
[1742021280060,0.03,134.26,134.25,106.379858]
[1742021280873,0.03,134.26,134.25,125.17166843]
[1742021282382,0.03,134.26,134.25,125.31383]
[1742021282584,0.03,134.26,134.25,125.17166843]
[1742021290089,0.03,134.26,134.25,172.69630043]
[1742021290678,0.03,134.26,134.25,125.17166843]
[1742021294700,0.03,134.26,134.25,172.838462]
[1742021298703,0.03,134.26,134.25,176.65115921]
[1742021299278,0.03,134.26,134.25,172.838462]
[1742021299484,0.03,134.26,134.25,125.31383]
[1742021301503,0.03,134.26,134.25,172.838462]
[1742021302801,0.03,134.3,134.28,0.14216157]
[1742021302999,0.03,134.3,134.29,11.881158]
[1742021303500,0.03,134.3,134.29,92.551158]
[1742021306102,0.03,134.3,134.29,99.997658]
[1742021311409,0.03,134.3,134.29,118.78946843]
[1742021311595,0.03,134.3,134.29,118.93163]
[1742021313496,1.5797,134.35,134.32,7.4449]
[1742021313713,1.5797,134.35,134.34,11.881158]
[1742021314098,13.17353055,134.39,134.34,30.67296843]
[1742021314301,13.17353055,134.39,134.38,11.881158]
[1742021314513,13.17353055,134.39,134.38,6.38]
[1742021316402,25.05468855,134.39,134.34,87.05]
[1742021316600,32.49578855,134.39,134.34,6.38]
[1742021316811,20.863258,134.39,134.34,6.38]
[1742021317010,20.893258,134.39,134.34,6.38]
[1742021317318,1.541,134.37,134.34,6.38]
[1742021318134,8.9831,134.37,134.34,6.38]
[1742021324709,1.541,134.37,134.34,18.261158]
[1742021324917,1.541,134.37,134.35,11.881158]
[1742021327734,1.541,134.37,134.34,18.261158]
[1742021328122,1.541,134.37,134.35,11.881158]
[1742021328434,1.571,134.37,134.35,11.881158]
[1742021328610,1.571,134.37,134.36,11.881158]
[1742021343941,1.571,134.37,134.33,6.38]
[1742021343942,15.4275,134.37,134.33,6.38]
[1742021344435,15.4275,134.37,134.32,11.881158]
[1742021344642,27.308658,134.37,134.33,6.38]
[1742021344839,45.913958,134.37,134.31,11.881158]
[1742021345146,45.913958,134.37,134.32,18.261158]
[1742021345679,34.0328,134.37,134.32,18.261158]
[1742021345830,7.9854,134.37,134.33,11.881158]
[1742021346162,7.9854,134.37,134.32,6.38]
[1742021346163,15.4275,134.37,134.34,11.881158]
[1742021347462,15.4275,134.37,134.32,18.261158]
[1742021348359,15.4275,134.37,134.33,11.881158]
[1742021349469,15.4275,134.37,134.32,18.261158]
[1742021351946,34.0328,134.37,134.32,18.261158]
[1742021355143,34.0328,134.37,134.33,11.881158]
[1742021355350,15.4275,134.37,134.33,11.881158]
[1742021356774,7.9854,134.37,134.34,11.881158]
[1742021356978,15.4275,134.37,134.35,11.881158]
[1742021358474,7.9854,134.37,134.35,11.881158]
[1742021360371,15.4276,134.37,134.35,11.881158]
[1742021360569,15.4276,134.37,134.32,6.38]
[1742021360751,15.4276,134.37,134.33,11.881158]
[1742021361065,15.4276,134.37,134.32,6.38]
[1742021361272,15.4276,134.37,134.32,18.261158]
[1742021364368,15.4276,134.37,134.33,11.881158]
[1742021369973,15.4276,134.37,134.32,18.261158]
[1742021371091,27.308758,134.37,134.32,6.38]
[1742021373580,15.4276,134.37,134.32,6.38]
[1742021376875,27.308758,134.37,134.32,6.38]
[1742021377076,12.02331957,134.36,134.32,6.38]
[1742021378974,7.4432,134.35,134.32,6.38]
[1742021388983,7.4432,134.35,134.31,18.261158]
[1742021389967,7.4432,134.35,134.31,6.38]
[1742021390585,7.58486157,134.36,134.31,18.261158]
[1742021391084,7.58486157,134.36,134.31,6.38]
[1742021397886,7.58486157,134.36,134.31,18.261158]
[1742021399967,7.58486157,134.36,134.31,6.38]
[1742021402973,1.6574,134.32,134.3,0.063]
[1742021403180,8.1605,134.32,134.3,0.063]
[1742021404797,7.4454,134.31,134.3,0.063]
[1742021416806,19.326558,134.31,134.3,0.063]
[1742021417501,19.61088114,134.31,134.3,0.063]
[1742021417705,38.26053,134.31,134.3,0.063]
[1742021421420,39.84433,134.31,134.3,0.063]
[1742021433416,20.0,134.28,134.25,0.063]
[1742021433601,31.881158,134.28,134.25,0.063]
[1742021441526,39.328358,134.28,134.25,0.063]
[1742021442054,31.881158,134.28,134.25,0.063]
[1742021442408,20.0,134.28,134.25,0.063]
[1742021448339,20.0,134.28,134.25,7.5117]
[1742021451535,20.0,134.28,134.25,19.392858]
[1742021452036,20.0,134.28,134.25,7.5117]
[1742021454145,20.0,134.28,134.25,11.944158]
[1742021454836,0.14216157,134.3,134.25,11.944158]
[1742021455043,0.03,134.31,134.29,11.881158]
[1742021456152,0.03,134.31,134.3,7.446]
[1742021456438,0.03,134.31,134.29,11.881158]
[1742021457843,0.03,134.31,134.29,19.327458]
[1742021458054,0.03,134.31,134.29,11.881158]
[1742021459044,0.03,134.31,134.28,25.708058]
[1742021466854,0.03,134.31,134.28,18.261158]
[1742021467650,0.03,134.31,134.28,25.708158]
[1742021469749,0.03,134.31,134.28,18.261158]
[1742021470557,0.03,134.31,134.28,6.38]
[1742021470772,11.881158,134.3,134.25,92.614158]
[1742021470963,11.881158,134.3,134.26,6.36]
[1742021471135,19.327258,134.3,134.26,6.36]
[1742021472751,20.896058,134.31,134.26,6.36]
[1742021473061,9.0149,134.31,134.26,25.689058]
[1742021473564,1.5694,134.31,134.26,25.689058]
[1742021473767,1.5694,134.31,134.27,11.881158]
[1742021475560,1.5694,134.31,134.27,19.328558]
[1742021476354,1.5694,134.31,134.29,11.881158]
[1742021476752,1.5694,134.31,134.28,11.881158]
[1742021478159,1.5694,134.31,134.28,19.328058]
[1742021478762,0.03,134.31,134.28,19.328058]
[1742021478950,0.03,134.31,134.29,11.881158]
[1742021483343,0.03,134.31,134.28,92.614158]
[1742021483944,0.03,134.31,134.28,100.061058]
[1742021484144,0.03,134.31,134.29,11.881158]
[1742021488767,0.03,134.31,134.28,100.061058]
[1742021492767,0.03,134.31,134.29,11.881158]
[1742021493670,0.03,134.31,134.28,88.1799]
[1742021493848,0.03,134.31,134.29,11.881158]
[1742021494363,0.03,134.31,134.28,88.1799]
[1742021494364,0.03,134.31,134.28,100.061058]
[1742021495776,0.03,134.31,134.29,11.881158]
[1742021496673,0.03,134.31,134.29,19.327658]
[1742021503781,0.03,134.31,134.29,11.881158]